bitfinex/quotes_BTCUSD_20260310
["timestamp","ask_amount","ask_price","bid_price","bid_amount"]
[1773162930435,0.03,71315.0,71304.0,0.05191793]
[1773162930875,0.0002,71312.0,71304.0,0.05191793]
[1773162932100,0.07010749,71321.0,71306.0,0.05191793]
[1773162932772,0.05015696,71320.0,71306.0,0.00144]
[1773162933095,0.03,71319.0,71306.0,0.00144]
[1773162933273,0.08015696,71319.0,71306.0,0.00144]
[1773162933496,0.0700863,71341.0,71306.0,0.00144]
[1773162933721,0.07053199,71325.0,71307.0,0.05191793]
[1773162933886,0.12068895,71325.0,71307.0,0.05191793]
[1773162934086,0.03,71324.0,71309.0,0.05191793]
[1773162934334,0.12068895,71325.0,71309.0,0.05191793]
[1773162934705,0.12068881,71325.0,71309.0,0.05191793]
[1773162935108,0.07053185,71325.0,71309.0,0.05191793]
[1773162935308,0.00043,71325.0,71309.0,0.05191793]
[1773162936117,0.00043,71325.0,71310.0,0.07011639]
[1773162936318,0.03,71324.0,71309.0,0.07011639]
[1773162936574,0.03,71320.0,71310.0,0.00144]
[1773162936777,0.03,71320.0,71311.0,0.00144]
[1773162936910,0.03,71320.0,71308.0,0.0701181]
[1773162937119,0.03,71320.0,71311.0,0.00144]
[1773162937518,0.1005318,71325.0,71312.0,0.05191793]
[1773162937803,0.0002181,71326.0,71313.0,0.13634425]
[1773162937950,0.0002,71319.0,71314.0,0.05191793]
[1773162938150,0.0002,71319.0,71315.0,0.07011147]
[1773162938867,0.0002181,71326.0,71315.0,0.1220294]
[1773162939071,0.00033073,71326.0,71315.0,0.1220294]
[1773162939770,0.03033073,71326.0,71316.0,0.05191793]
[1773162939977,0.03033073,71326.0,71317.0,0.00144]
[1773162940355,0.03033073,71326.0,71318.0,0.07010852]
[1773162940554,0.03033073,71326.0,71317.0,0.07154852]
[1773162940763,0.00562,71328.0,71317.0,0.07154852]
[1773162941098,0.1668282,71345.0,71317.0,0.07154852]
[1773162941099,0.05015696,71359.0,71329.0,0.05191793]
[1773162941491,0.05015696,71359.0,71330.0,0.00144]
[1773162941687,0.03,71348.0,71328.0,0.00562]
[1773162941889,0.05015696,71343.0,71328.0,0.00706]
[1773162942063,0.00144,71347.0,71328.0,0.00706]
[1773162942064,0.03,71340.0,71328.0,0.00706]
[1773162942263,0.05015696,71360.0,71329.0,0.05191793]
[1773162942462,0.05015696,71357.0,71331.0,0.05191793]
[1773162943235,0.03,71354.0,71331.0,0.05191793]
[1773162943521,0.03,71354.0,71331.0,0.05201493]
[1773162943683,0.08015696,71354.0,71331.0,0.05201493]
[1773162944109,0.03,71354.0,71331.0,0.05201493]
[1773162944317,0.00144,71361.0,71331.0,0.05201493]
[1773162944514,0.00144,71361.0,71333.0,0.05191793]
[1773162944830,0.00144,71361.0,71335.0,0.05191793]
[1773162944831,0.05015696,71360.0,71335.0,0.05191793]
[1773162945190,0.00144,71361.0,71335.0,0.05191793]
[1773162945191,0.03,71359.0,71335.0,0.05191793]
[1773162945531,0.08015696,71359.0,71335.0,0.05191793]
[1773162945734,0.08035696,71359.0,71335.0,0.05191793]
[1773162945933,0.0302,71359.0,71335.0,0.05191793]
[1773162946153,0.03,71357.0,71335.0,0.05191793]
[1773162946353,0.03,71355.0,71335.0,0.05191793]
[1773162946503,0.08015696,71355.0,71337.0,0.05191793]
[1773162946703,0.08015696,71355.0,71336.0,0.07009083]
[1773162946704,0.03,71355.0,71338.0,0.05335793]
[1773162946904,0.03,71353.0,71339.0,0.00144]
[1773162947333,0.03,71351.0,71333.0,9.7e-05]
[1773162947568,0.03,71345.0,71330.0,0.00144]
[1773162947786,0.05293114,71340.0,71330.0,0.00144]
[1773162947987,0.08293114,71339.0,71330.0,0.00144]
[1773162948223,0.08304377,71339.0,71330.0,0.00144]
[1773162948470,0.08304377,71339.0,71328.0,0.06715864]
[1773162948673,0.08304377,71339.0,71329.0,0.00144]
[1773162949070,0.03,71338.0,71330.0,0.050692]
[1773162949269,0.00011263,71339.0,71330.0,0.050692]
[1773162949919,0.00144,71343.0,71330.0,0.05166991]
[1773162950272,0.00144,71343.0,71330.0,0.05178254]
[1773162950444,0.05321582,71344.0,71330.0,0.05080463]
[1773162950649,0.08321582,71343.0,71330.0,0.07020891]
[1773162952327,0.03,71346.0,71330.0,0.07117126]
[1773162952507,0.03,71346.0,71331.0,0.05240019]
[1773162952880,0.03,71346.0,71332.0,0.07009476]
[1773162953952,0.03,71346.0,71333.0,0.00117886]
[1773162954101,0.33623862,71378.0,71334.0,0.05240019]
[1773162954102,0.03,71345.0,71334.0,0.05240019]
[1773162954298,0.07569183,71356.0,71336.0,0.05240019]
[1773162954299,0.00562,71356.0,71336.0,0.05240019]
[1773162954847,0.00562,71356.0,71339.0,0.05240019]
[1773162955199,0.03,71352.0,71340.0,0.00144]
[1773162955400,0.0002,71359.0,71341.0,0.05240019]
[1773162955848,0.00144,71363.0,71341.0,0.05240019]
[1773162956087,0.05321582,71362.0,71341.0,0.05240019]
[1773162956236,0.03,71361.0,71341.0,0.05240019]
[1773162956442,0.08321582,71359.0,71341.0,0.05240019]
[1773162957639,0.08321582,71359.0,71343.0,0.05240019]
[1773162957871,0.03,71358.0,71343.0,0.05240019]
[1773162958881,0.03,71357.0,71343.0,0.05240019]
[1773162959448,0.03,71353.0,71342.0,0.07008494]
[1773162960294,0.03,71353.0,71342.0,0.12248513]
[1773162960518,0.03,71352.0,71343.0,0.05240019]
[1773162960724,0.07005993,71368.0,71343.0,0.05240019]
[1773162960725,0.05321582,71365.0,71343.0,0.05240019]
[1773162961021,0.05465582,71365.0,71343.0,0.05240019]
[1773162961638,0.03,71364.0,71343.0,0.05240019]
[1773162962142,0.03,71364.0,71345.0,0.05240019]
[1773162962353,0.05321582,71374.0,71351.0,0.05240019]
[1773162962474,0.00562,71384.0,71351.0,0.05240019]
[1773162962475,0.10005188,71376.0,71351.0,0.05240019]
[1773162962679,0.10005188,71376.0,71344.0,0.07008297]
[1773162962680,0.03,71372.0,71345.0,0.05240019]
[1773162962894,0.08321582,71366.0,71346.0,0.05384019]
[1773162963300,0.00015,71385.0,71352.0,0.05240019]
[1773162963587,0.00015,71385.0,71360.0,0.15749117]
[1773162963786,0.05321582,71388.0,71363.0,0.05240019]
[1773162963988,0.0016673,71389.0,71363.0,0.05240019]
[1773162963989,0.0002273,71389.0,71365.0,0.05240019]
[1773162964137,0.0002273,71389.0,71366.0,0.483585]
[1773162964335,0.0002273,71389.0,71370.0,1.113421]
[1773162964547,0.0002273,71389.0,71371.0,0.05240019]
[1773162964548,1e-08,71389.0,71371.0,0.05240019]
[1773162964756,0.00023,71400.0,71371.0,0.05240019]
[1773162964977,0.00034262,71400.0,71372.0,1.000719]
[1773162965181,0.00034262,71400.0,71376.0,0.05240019]
[1773162965380,0.03,71396.0,71378.0,0.05240019]
[1773162965599,0.08321582,71392.0,71378.0,0.05240019]
[1773162966016,0.03,71392.0,71380.0,0.05240019]
[1773162966218,0.03,71388.0,71379.0,0.07004861]
[1773162966563,0.07003593,71392.0,71371.0,0.07105616]
[1773162966564,0.03,71382.0,71371.0,0.07105616]
[1773162966747,0.03,71378.0,71373.0,0.07005352]
[1773162966913,0.03,71378.0,71369.0,0.07005772]
[1773162966914,0.03,71376.0,71351.0,0.07007516]
[1773162967088,0.05321582,71386.0,71366.0,0.00144]
[1773162967485,0.05321582,71386.0,71364.0,0.07006235]
[1773162967703,0.05321582,71386.0,71366.0,0.00144]
[1773162967913,0.03,71384.0,71367.0,0.07006039]
[1773162968265,0.00011258,71386.0,71368.0,0.05240019]
[1773162968266,0.03,71382.0,71368.0,0.05240019]
[1773162968755,0.00011258,71386.0,71368.0,0.05240019]
[1773162969110,0.00031258,71386.0,71368.0,0.05240019]
[1773162969776,0.03,71395.0,71368.0,0.05240019]
[1773162969917,0.03,71395.0,71370.0,0.05240019]
[1773162970125,0.08321582,71395.0,71370.0,0.05240019]
[1773162970636,0.03,71395.0,71370.0,0.05240019]
[1773162970958,0.03,71394.0,71370.0,0.05240019]
[1773162971137,0.04875701,71397.0,71370.0,0.05240019]
[1773162971546,0.05321582,71396.0,71370.0,0.05240019]
[1773162971756,0.03,71395.0,71372.0,0.05240019]
[1773162971959,0.03,71391.0,71374.0,0.05240019]
[1773162972155,0.05321582,71390.0,71374.0,0.05240019]
[1773162972383,0.03,71389.0,71374.0,0.05240019]
[1773162972540,0.00144,71399.0,71374.0,0.05240019]
[1773162972742,0.05465582,71399.0,71374.0,0.05240019]
[1773162973038,0.05321582,71399.0,71374.0,0.05240019]
[1773162973236,0.03,71398.0,71374.0,0.05240019]
[1773162973640,0.03,71398.0,71373.0,0.0700545]
[1773162973641,0.03,71396.0,71375.0,0.00144]
[1773162973955,0.03,71394.0,71377.0,0.07005057]
[1773162974153,0.03,71394.0,71378.0,0.05240019]
[1773162974382,0.03,71394.0,71377.0,0.07005057]
[1773162974383,0.03,71390.0,71379.0,0.00144]
[1773162974680,0.03,71388.0,71379.0,0.00144]
[1773162975778,0.03,71387.0,71379.0,0.00144]
[1773162975948,0.03,71387.0,71380.0,0.07004763]
[1773162976595,0.03,71386.0,71380.0,0.07004763]
[1773162976804,0.0002,71392.0,71380.0,0.07004763]
[1773162977614,0.0002,71392.0,71381.0,0.0039431]
[1773162978029,0.0002,71392.0,71382.0,0.07004566]
[1773162978837,0.0302,71392.0,71382.0,0.12244585]
[1773162979255,0.0302,71392.0,71382.0,0.07004566]
[1773162979456,0.08267872,71390.0,71383.0,0.00144]
[1773162980021,0.03,71390.0,71384.0,0.0700437]
[1773162980423,0.03,71389.0,71384.0,0.0700437]
[1773162980872,0.00144,71399.0,71384.0,0.12468123]
[1773162981059,0.05411872,71399.0,71384.0,0.12468123]
[1773162981671,0.08267872,71398.0,71384.0,0.12468123]
[1773162981893,0.03,71396.0,71384.0,0.0700437]
[1773162982043,0.03,71388.0,71369.0,0.12469511]
[1773162982245,0.07003782,71390.0,71370.0,0.00144]
[1773162982246,0.03,71384.0,71370.0,0.00144]
[1773162982471,0.05267872,71381.0,71371.0,0.00144]
[1773162982669,0.0552975,71389.0,71372.0,0.05463753]
[1773162983732,0.08267872,71388.0,71372.0,0.05463753]
[1773162983893,0.03,71386.0,71372.0,0.05463753]
[1773162984087,0.00261878,71385.0,71373.0,0.0700545]
[1773162984288,0.03,71386.0,71373.0,0.0700545]
[1773162985261,0.03,71386.0,71372.0,0.12469203]
[1773162985262,0.03,71383.0,71372.0,0.07005548]
[1773162985505,0.03,71375.0,71368.0,0.0018155]
[1773162985667,0.00144,71383.0,71364.0,0.00144]
[1773162985668,0.08267872,71371.0,71364.0,0.00144]
[1773162985867,0.03,71367.0,71364.0,0.00144]
[1773162986217,0.08267872,71367.0,71364.0,0.00144]
[1773162986440,0.00037496,71371.0,71364.0,0.07150324]
[1773162986767,0.00037496,71371.0,71364.0,0.00144]
[1773162986972,0.03037496,71371.0,71364.0,0.00144]
[1773162987300,0.08305368,71371.0,71362.0,0.0715053]
[1773162987920,0.00037496,71371.0,71362.0,0.00144]
[1773162988230,0.03,71368.0,71362.0,0.00144]
[1773162988459,0.03,71368.0,71362.0,0.07150487]
[1773162988840,0.08267872,71368.0,71362.0,0.07006487]
[1773162989208,0.03,71367.0,71362.0,0.07006487]
[1773162989805,0.03,71367.0,71360.0,0.00144]
[1773162990039,0.05267872,71370.0,71350.0,0.00045]
[1773162990040,0.03,71361.0,71350.0,0.00045]
[1773162990354,0.03,71357.0,71350.0,0.07052638]
[1773162990494,0.00037496,71371.0,71352.0,0.05463753]
[1773162990692,0.03,71369.0,71353.0,0.14123849]
[1773162990934,0.05267872,71364.0,71354.0,0.00144]
[1773162991153,0.03,71363.0,71354.0,0.00144]
[1773162991355,0.08267872,71363.0,71354.0,0.00144]
[1773162991558,0.08267872,71363.0,71355.0,0.00144]
[1773162991734,0.03,71359.0,71350.0,0.07052703]
[1773162991935,0.08267872,71357.0,71351.0,0.14124497]
[1773162992286,0.08267872,71353.0,71347.0,0.07743898]
[1773162992413,0.03,71349.0,71347.0,0.07743898]
[1773162992613,0.08267872,71348.0,71347.0,0.07743898]
[1773162993606,0.07007278,71355.0,71343.0,0.00166]
[1773162993607,0.03,71347.0,71343.0,0.00022]
[1773162993823,0.03,71343.0,71338.0,0.00144]
[1773162994023,0.03,71339.0,71323.0,0.07010361]
[1773162994227,0.03,71335.0,71324.0,0.13981161]
[1773162994536,0.08267872,71326.0,71325.0,0.13981161]
[1773162994739,0.07008887,71338.0,71315.0,0.07033049]
[1773162994740,0.05267872,71337.0,71315.0,0.07033049]
[1773162994956,0.05267872,71337.0,71316.0,0.00144]
[1773162995161,0.05267872,71337.0,71324.0,0.00048]
[1773162995362,0.05267872,71337.0,71323.0,0.001]
[1773162995600,0.05267872,71337.0,71317.0,0.00144]
[1773162995750,0.03,71334.0,71317.0,0.00144]
[1773162995961,0.05267872,71329.0,71315.0,0.07044312]
[1773162996159,0.08267872,71328.0,71316.0,0.00144]
[1773162996383,0.08267872,71328.0,71317.0,0.07010951]
[1773162998225,0.05161168,71328.0,71317.0,0.07010951]
[1773162998438,0.05143382,71328.0,71317.0,0.07010951]
[1773163000402,0.03,71326.0,71314.0,0.0003111]
[1773163000534,0.03,71324.0,71317.0,0.00022]
[1773163000935,0.08267872,71324.0,71317.0,0.00022]
[1773163001135,0.03,71322.0,71317.0,0.00022]
[1773163001354,0.03,71320.0,71317.0,0.00022]
[1773163002352,0.03,71319.0,71317.0,0.00022]
[1773163002760,0.05411872,71325.0,71317.0,0.00022]
[1773163003092,0.00011242,71326.0,71318.0,0.07010852]
[1773163004089,0.00011242,71326.0,71317.0,0.07032852]
[1773163004297,0.00035588,71325.0,71317.0,0.07032852]
[1773163006635,0.00035588,71325.0,71318.0,0.13938278]
[1773163006837,0.00035588,71325.0,71319.0,0.13938278]
[1773163007043,0.00035588,71325.0,71317.0,0.07032852]
[1773163007224,0.00035588,71325.0,71314.0,0.0003111]
[1773163007225,0.03,71322.0,71314.0,1e-08]
[1773163007396,0.03,71318.0,71315.0,0.13939887]
[1773163007597,0.03,71318.0,71316.0,0.13939887]
[1773163007836,0.07307709,71325.0,71317.0,0.00022]
[1773163007837,0.00035588,71325.0,71317.0,0.00022]
[1773163008143,0.05619381,71323.0,71309.0,1e-08]
[1773163008342,0.05619381,71321.0,71309.0,1e-08]
[1773163008519,0.03,71316.0,71309.0,1e-08]
[1773163008752,0.00011242,71326.0,71312.0,0.1491465]
[1773163008945,0.00011242,71326.0,71314.0,0.05136685]
[1773163009327,0.00011242,71326.0,71315.0,0.00144]
[1773163009328,0.05503603,71325.0,71315.0,0.00144]
[1773163009534,0.00261878,71324.0,71315.0,0.00144]
[1773163009756,0.03261878,71325.0,71315.0,0.00144]
[1773163010368,0.03297466,71325.0,71315.0,0.00144]
[1773163011880,0.00279682,71325.0,71316.0,0.07011049]
[1773163012032,0.07289932,71325.0,71315.0,0.07155134]
[1773163012940,0.03279682,71325.0,71315.0,0.07155134]
[1773163013587,0.03261898,71325.0,71315.0,0.07155134]
[1773163014065,0.00261898,71325.0,71315.0,0.07155134]
[1773163015269,0.03261898,71325.0,71315.0,0.07155134]
[1773163016491,0.00261898,71325.0,71315.0,0.07155134]
[1773163018163,0.03035588,71325.0,71315.0,0.07155134]
[1773163018342,0.0022631,71324.0,71315.0,0.07155134]
[1773163018543,0.0022631,71324.0,71305.0,0.07012049]
[1773163018544,0.03,71322.0,71305.0,0.07012049]
[1773163018753,0.03,71322.0,71307.0,0.00144]
[1773163018754,0.03,71315.0,71307.0,0.00144]
[1773163018974,0.0022631,71321.0,71307.0,0.00144]
[1773163018975,0.03,71310.0,71307.0,0.00144]
[1773163019401,0.03,71310.0,71304.0,0.07034214]
[1773163019599,0.03,71310.0,71304.0,0.00166]
[1773163020251,0.03,71310.0,71304.0,0.07178227]
[1773163020884,0.05503603,71316.0,71304.0,0.07178227]
[1773163021098,0.03,71315.0,71304.0,0.00166]
[1773163021329,0.08503603,71313.0,71304.0,0.07178171]
[1773163021542,0.05503603,71312.0,71304.0,0.00166]
[1773163021766,0.08503603,71310.0,71304.0,0.00166]
[1773163021975,0.08503603,71310.0,71300.0,0.00585]
[1773163021976,0.03,71310.0,71300.0,0.00585]
[1773163022179,0.03,71304.0,71290.0,1e-08]
[1773163022390,0.03,71304.0,71275.0,0.00045]
[1773163022391,0.03,71298.0,71275.0,0.00045]
[1773163022599,0.05503603,71298.0,71275.0,0.00045]
[1773163022807,0.15703742,71290.0,71279.0,1e-08]
[1773163023033,0.15703742,71290.0,71271.0,0.00022]
[1773163023034,0.05485815,71288.0,71271.0,0.00022]
[1773163023454,0.05503603,71287.0,71271.0,0.00059574]
[1773163023919,0.03,71284.0,71271.0,0.00059574]
[1773163024123,0.03,71278.0,71271.0,0.00059574]
[1773163024338,0.03,71274.0,71271.0,0.00059574]
[1773163024541,0.08503603,71274.0,71271.0,0.00059574]
[1773163025075,0.03,71274.0,71271.0,0.00059574]
[1773163025281,0.03,71272.0,71271.0,0.00059574]
[1773163025502,0.08503603,71272.0,71271.0,0.00059574]
[1773163025704,0.03,71272.0,71271.0,0.00059574]
[1773163026079,0.05503603,71275.0,71271.0,0.00059574]
[1773163026272,0.05539191,71274.0,71271.0,0.00059574]
[1773163026488,0.03,71273.0,71271.0,0.00059574]
[1773163026685,0.08503603,71272.0,71271.0,0.00059574]
[1773163028297,0.03,71271.0,71264.0,0.20022]
[1773163028656,0.03,71269.0,71268.0,0.00027792]
[1773163029478,0.03,71265.0,71255.0,0.00022]
[1773163029702,0.05503603,71260.0,71250.0,0.00023]
[1773163029926,0.05503603,71254.0,71250.0,0.00034254]
[1773163030168,0.03,71255.0,71250.0,0.00034254]
[1773163030169,0.08503603,71251.0,71250.0,0.00034254]
[1773163031048,0.00144,71255.0,71250.0,0.00034254]
[1773163031279,0.03,71251.0,71250.0,0.00034254]
[1773163031586,0.08503603,71251.0,71250.0,0.00034254]
[1773163032037,0.08503603,71251.0,71244.0,0.0760211]
[1773163032038,0.00144,71262.0,71248.0,0.00144]
[1773163032249,0.00155237,71262.0,71248.0,0.00144]
[1773163032457,0.00155237,71262.0,71249.0,0.07017642]
[1773163032458,0.03,71260.0,71249.0,0.07017642]
[1773163033333,0.03,71260.0,71244.0,0.07230181]
[1773163033334,0.03,71256.0,71246.0,9.12e-05]
[1773163033503,0.03,71250.0,71246.0,9.12e-05]
[1773163033682,0.03,71250.0,71244.0,0.00212071]
[1773163033683,0.08503603,71245.0,71244.0,0.00212071]
[1773163034066,0.05503603,71244.0,71232.0,0.00144]
[1773163034257,0.03,71241.0,71225.0,0.00023]
[1773163034453,0.03,71237.0,71223.0,0.00144]
[1773163034659,0.03,71235.0,71223.0,0.00144]
[1773163034984,0.03,71235.0,71225.0,0.05456513]
[1773163035153,0.03,71235.0,71226.0,0.00603509]
[1773163035562,0.03,71235.0,71226.0,0.00614771]
[1773163035870,0.03,71234.0,71226.0,0.00614771]
[1773163036539,0.03,71234.0,71227.0,0.07019809]
[1773163036728,0.08503603,71239.0,71228.0,0.00603492]
[1773163039583,0.03,71236.0,71229.0,0.00144]
[1773163039783,0.08002365,71239.0,71229.0,0.00144]
[1773163040196,0.07018148,71244.0,71229.0,0.00144]
[1773163040197,0.05002365,71246.0,71230.0,0.05100585]
[1773163040611,0.03,71243.0,71226.0,0.00011262]
[1773163040820,0.05002365,71238.0,71227.0,0.00144]
[1773163041023,0.08002365,71235.0,71227.0,0.00144]
[1773163041243,0.05002365,71234.0,71227.0,0.00144]
[1773163041468,0.03,71233.0,71227.0,0.00144]
[1773163041925,0.03,71231.0,71229.0,0.00022]
[1773163043044,0.03,71230.0,71229.0,0.00022]
[1773163043534,0.03,71230.0,71190.0,0.1491465]
[1773163043769,0.03,71224.0,71210.0,0.00144]
[1773163043983,0.03,71218.0,71210.0,0.00144]
[1773163044214,0.03,71218.0,71214.0,0.07043088]
[1773163044446,0.03,71218.0,71214.0,0.00022]
[1773163044680,0.03,71218.0,71212.0,0.07021284]
[1773163044681,0.03,71218.0,71210.0,0.00144]
[1773163044916,0.03,71218.0,71208.0,0.00144]
[1773163045138,0.08002365,71218.0,71208.0,0.00144]
[1773163045569,0.08002365,71218.0,71207.0,0.07021753]
[1773163045693,0.08002365,71218.0,71209.0,0.00144]
[1773163046098,0.08002365,71218.0,71207.0,0.07021771]
[1773163046099,0.15023101,71218.0,71206.0,0.02870725]
[1773163046352,0.15023101,71218.0,71207.0,0.00144]
[1773163046526,0.08002365,71218.0,71206.0,0.02870725]
[1773163046785,0.08002365,71218.0,71207.0,0.07165769]
[1773163046972,0.03,71218.0,71207.0,0.07165769]
[1773163047175,0.03144,71223.0,71209.0,0.05100585]
[1773163047378,0.03144,71223.0,71210.0,0.00356]
[1773163047732,0.10164207,71223.0,71211.0,0.00144]
[1773163047948,0.10020207,71223.0,71211.0,0.00144]
[1773163048183,0.07030755,71230.0,71212.0,0.05456575]
[1773163048393,0.03,71229.0,71212.0,0.05456575]
[1773163048606,0.03,71229.0,71212.0,0.05100585]
[1773163048817,0.07030755,71230.0,71213.0,0.12121774]
[1773163048818,0.03,71227.0,71213.0,0.12121774]
[1773163049039,0.03,71227.0,71214.0,0.05456545]
[1773163049733,0.0022631,71233.0,71214.0,0.05412081]
[1773163049960,0.10244543,71243.0,71214.0,0.0540849]
[1773163050212,0.10388543,71243.0,71214.0,0.0540849]
[1773163050937,0.10388543,71243.0,71215.0,0.07020992]
[1773163051177,0.03,71249.0,71222.0,0.05100585]
[1773163051386,0.03,71249.0,71224.0,0.05100585]
[1773163051856,0.10491677,71266.0,71223.0,0.00833354]
[1773163051857,0.05002365,71257.0,71227.0,0.829885]
[1773163052040,0.03,71259.0,71228.0,0.05100585]
[1773163052372,0.08002365,71255.0,71229.0,0.00144]
[1773163052569,0.08002365,71255.0,71230.0,0.05100585]
[1773163053168,0.03,71255.0,71232.0,0.05100585]
[1773163053370,0.10017121,71255.0,71232.0,0.05100585]
[1773163053755,0.03,71255.0,71232.0,0.05100585]
[1773163053959,0.10017091,71255.0,71232.0,0.05100585]
[1773163054169,0.05002365,71250.0,71228.0,0.07119645]
[1773163054424,0.05002365,71244.0,71232.0,0.00144]
[1773163054617,0.05002365,71240.0,71225.0,0.07042997]
[1773163054818,0.03,71239.0,71226.0,0.00144]
[1773163055059,0.03,71239.0,71227.0,0.07019809]
[1773163055258,0.03,71239.0,71228.0,0.05100585]
[1773163055539,0.07018,71246.0,71228.0,0.05100585]
[1773163055540,0.05002365,71251.0,71228.0,0.05100585]
[1773163055783,0.08146365,71250.0,71228.0,0.05100585]
[1773163055988,0.03,71248.0,71228.0,0.05100585]
[1773163056751,0.0002,71245.0,71228.0,0.05100585]
[1773163057332,0.0002,71245.0,71229.0,0.07019612]
[1773163057679,0.0002,71245.0,71230.0,0.05100585]
[1773163058261,0.05146365,71252.0,71230.0,0.05100585]
[1773163058464,0.03,71251.0,71230.0,0.05100585]
[1773163059076,0.00144,71259.0,71231.0,0.05100585]
[1773163059274,0.00144,71260.0,71231.0,0.05100585]
[1773163059474,0.03144,71260.0,71233.0,0.05100585]
[1773163059766,0.03144,71260.0,71235.0,0.05100585]
[1773163059970,0.10016608,71260.0,71235.0,0.05100585]
[1773163060209,0.08002365,71258.0,71237.0,0.05100585]
[1773163060416,0.03,71256.0,71237.0,0.05100585]
[1773163061190,0.03,71256.0,71237.0,0.05085769]
[1773163061398,0.00011275,71256.0,71237.0,0.05085769]
[1773163061602,0.00011275,71256.0,71239.0,0.05100585]
[1773163062145,0.00011275,71256.0,71235.0,0.00144]
[1773163062146,0.05002365,71249.0,71235.0,0.00144]
[1773163062360,0.03,71246.0,71228.0,0.00590473]
[1773163062556,0.03,71246.0,71230.0,0.05100585]
[1773163063028,0.03,71246.0,71230.0,0.05691033]
[1773163063232,0.00011275,71256.0,71231.0,0.05100585]
[1773163063482,0.00011275,71256.0,71233.0,0.05100585]
[1773163063640,0.00011275,71256.0,71235.0,0.05085767]
[1773163063844,0.00011275,71256.0,71237.0,0.05085768]
[1773163064033,0.0002,71254.0,71239.0,0.05100585]
[1773163064247,0.0002,71254.0,71241.0,0.05100585]
[1773163064455,0.0002,71254.0,71243.0,0.05100585]
[1773163064856,0.00011275,71256.0,71243.0,0.05100585]
[1773163065148,0.12018241,71267.0,71243.0,0.05100585]
[1773163065360,0.12162241,71267.0,71243.0,0.0511186]
[1773163065567,0.03,71266.0,71244.0,0.07018134]
[1773163065768,0.03144,71266.0,71245.0,0.05100585]
[1773163065988,0.10160015,71266.0,71245.0,0.05100585]
[1773163066401,0.03,71264.0,71245.0,0.05100585]
[1773163066906,0.00562,71272.0,71252.0,0.14904024]
[1773163067111,0.00562,71272.0,71253.0,0.05153133]
[1773163067720,0.00562,71272.0,71255.0,0.05009133]
[1773163069553,0.00562,71272.0,71255.0,0.04994316]
[1773163069807,0.00562,71272.0,71257.0,0.04755411]
[1773163070220,0.00562,71272.0,71257.0,0.04740595]
[1773163070626,0.00023,71275.0,71257.0,0.04740595]
[1773163070839,0.000461,71284.0,71257.0,0.04740595]
[1773163071068,0.000461,71284.0,71263.0,0.04755411]
[1773163071283,0.03,71286.0,71260.0,0.15767544]
[1773163071284,0.03,71286.0,71270.0,0.15767544]
[1773163071502,0.07597626,71300.0,71271.0,0.04899411]
[1773163071503,0.04600846,71295.0,71271.0,0.04899411]
[1773163071712,0.04600846,71295.0,71256.0,0.07016952]
[1773163071713,0.0002,71272.0,71257.0,0.04755411]
[1773163072170,0.0002,71272.0,71256.0,0.07016952]
[1773163072171,0.0002,71272.0,71259.0,0.04755411]
[1773163073742,0.0302,71272.0,71260.0,0.07160559]
[1773163073956,0.0302,71272.0,71261.0,0.04755411]
[1773163074880,0.03,71271.0,71261.0,0.04755411]
[1773163075739,0.03,71270.0,71263.0,0.07016263]
[1773163076584,0.03,71270.0,71263.0,0.11771674]
[1773163076860,0.03,71276.0,71263.0,0.11771674]
[1773163077306,0.07597658,71300.0,71264.0,0.05304051]
[1773163077477,0.04600846,71299.0,71266.0,0.04755411]
[1773163077792,0.04600846,71297.0,71268.0,0.04755411]
[1773163078079,0.03,71290.0,71268.0,0.04755411]
[1773163079203,0.03,71290.0,71269.0,0.00572703]
[1773163079371,0.03,71290.0,71270.0,0.04755411]
[1773163080151,0.03,71290.0,71272.0,0.04755411]
[1773163080287,0.03,71290.0,71274.0,0.04755411]
[1773163080488,0.03,71290.0,71275.0,0.00144]
[1773163080828,0.03,71289.0,71275.0,0.00144]
[1773163081060,0.000461,71310.0,71280.0,0.12733746]
[1773163081362,0.04600846,71322.0,71301.0,0.04755411]
[1773163081536,0.04600846,71322.0,71302.0,0.00144]
[1773163081682,0.07033167,71325.0,71301.0,0.00011274]
[1773163081683,0.04600846,71313.0,71301.0,0.00011274]
[1773163081886,0.07039151,71314.0,71286.0,0.04755411]
[1773163081887,0.03,71308.0,71294.0,0.07013116]
[1773163082113,0.03,71302.0,71295.0,0.00144]
[1773163082316,0.03,71298.0,71295.0,0.00144]
[1773163082666,0.00011259,71308.0,71293.0,0.07013308]
[1773163082877,0.00011259,71308.0,71296.0,0.00144]
[1773163083026,0.00011259,71308.0,71296.0,0.04899411]
[1773163083199,0.04600846,71307.0,71293.0,0.07013308]
[1773163083399,0.03,71306.0,71294.0,0.00144]
[1773163083601,0.03,71302.0,71294.0,0.00144]
[1773163084000,0.03,71302.0,71295.0,0.07013114]
[1773163084814,0.03,71301.0,71295.0,0.07013114]
[1773163085815,0.0002,71302.0,71295.0,0.07013114]
[1773163086187,0.07011446,71312.0,71295.0,0.07013114]
[1773163086188,0.00027881,71314.0,71295.0,0.07013114]
[1773163086429,0.04620846,71326.0,71301.0,0.04755411]
[1773163086702,0.04764846,71326.0,71303.0,0.04755411]
[1773163087066,0.10033228,71325.0,71303.0,0.04755411]
[1773163087279,0.03,71321.0,71303.0,0.04755411]
[1773163087679,0.00023,71325.0,71303.0,0.04755411]
[1773163087912,0.07033252,71325.0,71303.0,0.04755411]
[1773163088054,0.07033252,71325.0,71295.0,0.07024373]
[1773163088055,0.04600846,71324.0,71304.0,0.00144]
[1773163088270,0.04600846,71324.0,71295.0,0.07024373]
[1773163088271,0.03,71320.0,71295.0,0.07024373]
[1773163088466,0.03,71316.0,71295.0,0.07024373]
[1773163088673,0.07154361,71323.0,71295.0,0.00011259]
[1773163088674,0.03,71310.0,71295.0,0.00011259]
[1773163088871,0.03,71304.0,71295.0,0.00011259]
[1773163089096,0.07600846,71300.0,71295.0,0.00011259]
[1773163089308,0.03,71298.0,71295.0,0.00011259]
[1773163089716,0.03,71298.0,71294.0,0.07013197]
[1773163089912,0.03011257,71298.0,71294.0,0.07013197]